fUSD/lending_fUSD_20240327
["ID","MTS","AMOUNT","RATE_DAILY","PERIOD"]
[320711835,1711525860808,-151.0,0.00055068,30]
[320711836,1711525860819,-500.0,0.00055068,120]
[320711837,1711525860830,-2646.84,0.00055068,120]
[320711838,1711525860840,-1544.62,0.00055068,120]
[320711839,1711525860850,-1354.16,0.00055068,120]
[320711840,1711525860859,-597.56,0.00055068,120]
[320711841,1711525860869,-1663.15,0.00055068,120]
[320711842,1711525860878,-5180.1,0.00055068,120]
[320711843,1711525860887,-500.0,0.00055068,7]
[320711844,1711525860898,-655.35,0.00055068,120]
[320711845,1711525860907,-8156.33,0.00055068,120]
[320711846,1711525860921,-2446.05,0.00055068,120]
[320711847,1711525860931,-1305.52,0.00055068,120]
[320711848,1711525860941,-628.6,0.00055068,120]
[320711849,1711525860950,-500.0,0.00055068,120]
[320711850,1711525860959,-1970.46,0.00055068,120]
[320711851,1711525860969,-10817.24,0.00055068,120]
[320711852,1711525860981,-4578.48,0.00055068,120]
[320711853,1711525860990,-500.0,0.00055068,120]
[320711854,1711525861000,-1300.492468,0.00055068,120]
[320711855,1711525861012,-5735.51,0.00055068,120]
[320711856,1711525861021,-500.0,0.00055068,120]
[320711857,1711525861030,-1110.31,0.00055068,120]
[320711858,1711525861040,-500.0,0.00055068,120]
[320711859,1711525861050,-5293.74,0.00055068,120]
[320711860,1711525861060,-1300.492468,0.00055068,120]
[320711861,1711525861070,-528.89,0.00055068,120]
[320711862,1711525861079,-151.0,0.00055068,120]
[320711863,1711525861089,-830.37,0.00055068,120]
[320711864,1711525861099,-4682.48,0.00055068,120]
[320711865,1711525861108,-2487.61,0.00055068,120]
[320711866,1711525861118,-639.09,0.00055068,120]
[320711867,1711525861128,-152.054815,0.00055068,120]
[320711868,1711525861138,-4785.47,0.00055068,120]
[320711869,1711525861147,-500.0,0.00055068,120]
[320711870,1711525861157,-151.0,0.00055068,120]
[320711871,1711525861169,-500.0,0.00055068,120]
[320711872,1711525861179,-7997.44,0.00055068,120]
[320711873,1711525861191,-778.48,0.00055068,120]
[320711874,1711525861200,-59123.23,0.00055068,120]
[320711875,1711525861210,-721.44,0.00055068,120]
[320711876,1711525861220,-151.0,0.00055068,120]
[320711877,1711525861230,-497.86014001,0.00055068,120]
[320711878,1711525861242,-2811.63,0.00055068,120]
[320711879,1711525861251,-625.28,0.00055068,120]
[320711880,1711525861261,-4624.27,0.00055068,120]
[320711881,1711525861272,-2153.06,0.00055068,120]
[320711882,1711525861282,-793.14,0.00055068,120]
[320711883,1711525861291,-10156.79,0.00055068,120]
[320711884,1711525861301,-500.0,0.00055068,120]
[320711885,1711525861310,-5595.24,0.00055068,120]
[320711886,1711525861321,-500.0,0.00055068,2]
[320711887,1711525861330,-500.0,0.00055068,120]
[320711888,1711525861340,-5925.3,0.00055068,120]
[320711889,1711525861350,-500.0,0.00055068,120]
[320711890,1711525861359,-151.0,0.00055068,120]
[320711891,1711525861369,-1707.47,0.00055068,120]
[320711892,1711525861378,-500.0,0.00055068,120]
[320711893,1711525861388,-500.0,0.00055068,120]
[320711894,1711525861398,-500.0,0.00055068,120]
[320711895,1711525861407,-500.0,0.00055068,120]
[320711896,1711525861421,-6017.38,0.00055068,120]
[320711897,1711525861432,-16930.37,0.00055068,120]
[320711898,1711525861441,-767.5,0.00055068,120]
[320711899,1711525861451,-597.22,0.00055068,120]
[320711900,1711525861461,-6791.1,0.00055068,120]
[320711901,1711525861471,-500.0,0.00055068,120]
[320711902,1711525861481,-151.0,0.00055068,7]
[320711903,1711525861491,-2332.74,0.00055068,120]
[320711904,1711525861500,-500.0,0.00055068,120]
[320711905,1711525861510,-688.45,0.00055068,120]
[320711906,1711525861520,-1067.78,0.00055068,120]
[320711907,1711525861529,-2124.83,0.00055068,120]
[320711908,1711525861539,-979.12,0.00055068,120]
[320711909,1711525861548,-1024.98,0.00055068,120]
[320711910,1711525861557,-500.0,0.00055068,120]
[320711911,1711525861567,-500.0,0.00055068,120]
[320711912,1711525861577,-4437.15,0.00055068,120]
[320711913,1711525861586,-5620.71,0.00055068,120]
[320711914,1711525861596,-500.0,0.00055068,55]
[320711915,1711525861605,-1121.34,0.00055068,120]
[320711916,1711525861616,-500.0,0.00055068,120]
[320711917,1711525861627,-22653.19,0.00055068,120]
[320711918,1711525861636,-19627.16,0.00055068,120]
[320711919,1711525861646,-151.0,0.00055068,120]
[320711920,1711525861656,-2483.28,0.00055068,120]
[320711921,1711525861671,-581.9,0.00055068,120]
[320711922,1711525861681,-6047.37,0.00055068,21]
[320711923,1711525861690,-3740.12,0.00055068,120]
[320711924,1711525861700,-7851.37,0.00055068,120]
[320711925,1711525861710,-500.0,0.00055068,120]
[320711926,1711525861720,-2111.47,0.00055068,120]
[320711927,1711525861730,-500.0,0.00055068,120]
[320711928,1711525861739,-500.0,0.00055068,120]
[320711929,1711525861749,-151.0,0.00055068,120]
[320711930,1711525861758,-919.37,0.00055068,120]
[320711931,1711525861767,-2142.51,0.00055068,120]
[320711932,1711525861777,-1323.39,0.00055068,120]
[320711933,1711525861787,-2674.38,0.00055068,120]
[320711934,1711525861798,-151.0,0.00055068,120]
[320711935,1711525861808,-109.71983049,0.00055068,120]
[320711936,1711525862109,-390.28016951,0.00055068,120]
[320711937,1711525862119,-8591.58,0.00055068,120]
[320711938,1711525862129,-1980.22462485,0.00055068,120]
[320711939,1711525862145,-123.80537515,0.00055068,120]
[320711940,1711525862154,-689.60598858,0.00055068,120]
[320711941,1711525862170,-4547.61401142,0.00055068,120]
[320711942,1711525862179,-1069.03,0.00055068,120]
[320711943,1711525862188,-500.0,0.00055068,120]
[320711944,1711525862198,-500.0,0.00055068,120]
[320711945,1711525862207,-999.3,0.00055068,120]
[320711946,1711525862217,-1298.48,0.00055068,120]
[320711947,1711525862228,-151.0,0.00055068,120]
[320711948,1711525862238,-2071.66460117,0.00055068,120]
[320711949,1711525863098,-155.0,0.00037797,4]
[320711950,1711525863107,-323.69229295,0.00037797,4]
[320711951,1711525863119,-507.30573655,0.00037797,4]
[320711952,1711525863131,-5832.90581478,0.00037797,4]
[320711953,1711525863141,-1253.35233638,0.00039949,2]
[320711954,1711525863151,-10475.57539883,0.00055068,120]
[320711955,1711525863161,-6304.68,0.00055068,120]
[320711956,1711525863171,-2880.09,0.00055068,120]
[320711957,1711525863180,-558.23,0.00055068,120]
[320711958,1711525863189,-1817.87,0.00055068,120]
[320711959,1711525863199,-804.68,0.00055068,120]
[320711960,1711525863209,-567.71,0.00055068,120]
[320711961,1711525863219,-500.0,0.00055068,120]
[320711962,1711525863229,-21156.47,0.00055068,120]
[320711963,1711525863243,-500.0,0.00055068,120]
[320711964,1711525863253,-1039.05858239,0.00055068,120]
[320711965,1711525863266,-26.61141761,0.00055068,120]
[320711966,1711525863275,-236.10078599,0.00055068,120]
[320711967,1711525863292,-263.89921401,0.00055068,120]
[320711968,1711525863301,-1562.06,0.00055068,120]
[320711969,1711525863311,-5069.37620298,0.00055068,120]
[320711970,1711525863323,-3171.81379702,0.00055068,120]
[320711971,1711525863332,-807.13,0.00055068,120]
[320711972,1711525863343,-635.58,0.00055068,120]
[320711973,1711525863353,-326.42147514,0.00055068,120]
[320711974,1711525863365,-869.95852486,0.00055068,120]
[320711975,1711525863376,-191.10489514,0.00055068,2]
[320711976,1711525863469,-265.12066063,0.00054794,120]
[320711977,1711525863478,-70.92367163,0.00055068,2]
[320711978,1711525863488,-2798.03,0.00055068,120]
[320711979,1711525863498,-2094.44,0.00055068,120]
[320711980,1711525863508,-6460.39,0.00055068,120]
[320711981,1711525863518,-658.04,0.00055068,120]
[320711982,1711525863527,-708.1,0.00055068,120]
[320711983,1711525863536,-1026.21501371,0.00055068,120]
[320711984,1711525863547,-467.77498629,0.00055068,120]
[320711985,1711525863557,-6902.63,0.00055068,120]
[320711986,1711525863567,-500.0,0.00055068,120]
[320711987,1711525863578,-624.85,0.00055068,120]
[320711988,1711525863587,-500.0,0.00055068,120]
[320711989,1711525863596,-2594.47,0.00055068,120]
[320711990,1711525863606,-522.55,0.00055068,120]
[320711991,1711525863616,-151.0,0.00055068,120]
[320711992,1711525863627,-652.24,0.00055068,120]
[320711993,1711525863638,-1400.44,0.00055068,120]
[320711994,1711525863647,-500.0,0.00055068,120]
[320711995,1711525863657,-500.0,0.00055068,120]
[320711996,1711525863669,-563.02,0.00055068,120]
[320711997,1711525863679,-876.36,0.00055068,120]
[320711998,1711525863689,-8258.45,0.00055068,120]
[320711999,1711525863699,-553.24,0.00055068,120]
[320712000,1711525863708,-1629.7,0.00055068,120]
[320712001,1711525863718,-1186.46,0.00055068,120]
[320712002,1711525863727,-151.0,0.00055068,14]
[320712003,1711525863737,-500.0,0.00055068,120]
[320712004,1711525863747,-1344.96,0.00055068,120]
[320712005,1711525863756,-7181.06,0.00055068,120]
[320712006,1711525863766,-301.694048,0.00055068,120]
[320712007,1711525863775,-301.694048,0.00055068,120]
[320712008,1711525863784,-806.88,0.00055068,120]
[320712009,1711525863793,-5183.58,0.00055068,120]
[320712010,1711525863802,-500.0,0.00055068,120]
[320712011,1711525863811,-1070.78,0.00055068,120]
[320712012,1711525863820,-151.0,0.00055068,120]
[320712013,1711525863830,-246.11,0.00055068,30]
[320712014,1711525863839,-7841.232594,0.0005508,2]
[320712015,1711525863848,-283.8579479,0.00055081,2]
[320712016,1711525863857,-151.0,0.00055087,30]
[320712017,1711525863866,-1300.492468,0.00055087,120]
[320712018,1711525863876,-1300.492468,0.00055087,120]
[320712019,1711525863886,-151.0,0.00055087,120]
[320712020,1711525863896,-152.720548,0.00055087,120]
[320712021,1711525863905,-151.0,0.00055087,120]
[320712022,1711525863916,-335.93982678,0.00055119,54]
[320712023,1711525863926,-3590.5129965,0.0005516,2]
[320712024,1711525863935,-72935.17259881,0.0005516,2]
[320712025,1711525863948,-27498.33246929,0.0005516,2]
[320712026,1711525863957,-151.0,0.0005516,7]
[320712027,1711525863966,-151.0,0.0005516,120]
[320712028,1711525863975,-151.0,0.0005516,120]
[320712029,1711525863984,-151.0,0.0005516,120]
[320712030,1711525863994,-151.0,0.0005516,120]
[320712031,1711525864003,-151.0,0.0005516,120]
[320712032,1711525864013,-151.0,0.0005516,14]
[320712033,1711525864022,-301.694048,0.0005516,120]
[320712034,1711525864031,-301.694048,0.0005516,120]
[320712035,1711525864040,-151.0,0.0005516,120]
[320712036,1711525864049,-151.032716,0.00055198,107]
[320712037,1711525864059,-150.0,0.000552,14]
[320712038,1711525864068,-62235.771171,0.0005527,30]
[320712039,1711525864078,-151.0,0.00055276,120]
[320712040,1711525864087,-186.421212,0.00055276,120]
[320712041,1711525864096,-168422.80759156,0.00055276,120]
[320712042,1711525864106,-150.0,0.00055283,14]
[320712043,1711525864116,-1000.0,0.00055291,120]
[320712044,1711525864126,-150.0,0.00055294,14]
[320712045,1711525864135,-150.0,0.00055294,14]
[320712046,1711525864144,-200.0,0.00055332,120]
[320712047,1711525864154,-150.0,0.00055341,120]
[320712048,1711525864164,-500.0,0.00055342,120]
[320712049,1711525864173,-500.0,0.00055342,120]
[320712050,1711525864183,-500.0,0.00055342,120]
[320712051,1711525864192,-500.0,0.00055342,120]
[320712052,1711525864201,-500.0,0.00055342,120]
[320712053,1711525864210,-500.0,0.00055342,120]
[320712054,1711525864219,-500.0,0.00055342,120]
[320712055,1711525864230,-205.87985218,0.00055342,120]
[320712056,1711525864239,-500.0,0.00055342,120]
[320712057,1711525864248,-500.0,0.00055342,120]
[320712058,1711525864257,-500.0,0.00055342,120]
[320712059,1711525864267,-500.0,0.00055342,120]
[320712060,1711525864276,-507.04,0.00055342,120]
[320712061,1711525864285,-500.0,0.00055342,120]
[320712062,1711525864294,-500.0,0.00055342,120]
[320712063,1711525864306,-500.0,0.00055342,120]
[320712064,1711525864316,-500.0,0.00055342,120]
[320712065,1711525864325,-151.0,0.00055342,120]
[320712066,1711525864334,-500.0,0.00055342,120]
[320712067,1711525864343,-500.0,0.00055342,120]
[320712068,1711525864353,-502.51658964,0.00055342,120]
[320712069,1711525864362,-500.0,0.00055342,120]
[320712070,1711525864372,-500.0,0.00055342,120]
[320712071,1711525864381,-517.03,0.00055342,120]
[320712072,1711525864390,-500.0,0.00055342,120]
[320712073,1711525864400,-652.29,0.00055342,120]
[320712074,1711525864409,-500.0,0.00055342,120]
[320712075,1711525864421,-506.3391164,0.00055342,120]
[320712076,1711525864429,-500.0,0.00055342,120]
[320712077,1711525864438,-500.0,0.00055342,120]
[320712078,1711525864448,-500.0,0.00055342,120]
[320712079,1711525864457,-529.79,0.00055342,120]
[320712080,1711525864466,-593.81,0.00055342,120]
[320712081,1711525864475,-500.0,0.00055342,120]
[320712082,1711525864485,-505.10756868,0.00055342,120]
[320712083,1711525864494,-500.0,0.00055342,120]
[320712084,1711525864503,-504.39803136,0.00055342,120]
[320712085,1711525864513,-507.26869998,0.00055342,120]
[320712086,1711525864522,-500.0,0.00055342,120]
[320712087,1711525864531,-1123.17,0.00055342,120]
[320712088,1711525864540,-500.0,0.00055342,120]
[320712089,1711525864550,-500.0,0.00055342,120]
[320712090,1711525864559,-308.66069358,0.00055342,120]
[320712091,1711525864568,-500.0,0.00055342,120]
[320712092,1711525864578,-500.0,0.00055342,120]
[320712093,1711525864587,-533.25,0.00055342,120]
[320712094,1711525864596,-300.11932782,0.00055342,120]
[320712095,1711525864605,-1252.45,0.00055342,120]
[320712096,1711525864614,-500.0,0.00055342,120]
[320712097,1711525864623,-500.0,0.00055342,120]
[320712098,1711525864632,-889.63,0.00055342,120]
[320712099,1711525864643,-504.03385776,0.00055342,120]
[320712100,1711525864652,-1138.93,0.00055342,120]
[320712101,1711525864663,-505.00906481,0.00055342,120]
[320712102,1711525864674,-348.73704581,0.00055342,120]
[320712103,1711525864683,-500.0,0.00055342,120]
[320712104,1711525864692,-500.0,0.00055342,120]
[320712105,1711525864702,-500.0,0.00055342,120]
[320712106,1711525864712,-720.64,0.00055342,120]
[320712107,1711525864722,-503.75,0.00055342,120]
[320712108,1711525864732,-1867.32,0.00055342,120]
[320712109,1711525864742,-196.529674,0.00055342,30]
[320712110,1711525864751,-196.529674,0.00055342,30]
[320712111,1711525864761,-584.18,0.00055342,120]
[320712112,1711525864771,-196.529674,0.00055342,30]
[320712113,1711525864780,-196.529674,0.00055342,30]
[320712114,1711525864791,-991.68,0.00055342,120]
[320712115,1711525864800,-500.0,0.00055342,120]
[320712116,1711525864810,-500.0,0.00055342,120]
[320712117,1711525864820,-1405.26,0.00055342,120]
[320712118,1711525864830,-500.0,0.00055342,120]
[320712119,1711525864840,-500.0,0.00055342,120]
[320712120,1711525864851,-502.55261871,0.00055342,120]
[320712121,1711525864862,-1133.93,0.00055342,120]
[320712122,1711525864872,-500.0,0.00055342,120]
[320712123,1711525864881,-627.75,0.00055342,120]
[320712124,1711525864891,-500.0,0.00055342,120]
[320712125,1711525864901,-151.0,0.00055342,120]
[320712126,1711525864912,-151.0,0.00055342,120]
[320712127,1711525864922,-758.88,0.00055342,120]
[320712128,1711525864932,-657.28,0.00055342,120]
[320712129,1711525864942,-500.0,0.00055342,120]
[320712130,1711525864951,-509.29828579,0.00055342,120]
[320712131,1711525864962,-500.0,0.00055342,120]
[320712132,1711525864971,-500.0,0.00055342,120]
[320712133,1711525864981,-500.0,0.00055342,120]
[320712134,1711525864991,-500.0,0.00055342,120]
[320712135,1711525865002,-917.05,0.00055342,120]
[320712136,1711525865011,-545.82,0.00055342,120]
[320712137,1711525865021,-857.61,0.00055342,120]
[320712138,1711525865031,-500.0,0.00055342,120]
[320712139,1711525865041,-500.0,0.00055342,120]
[320712140,1711525865051,-500.0,0.00055342,120]
[320712141,1711525865061,-217.107115,0.00055342,120]
[320712142,1711525865072,-217.107115,0.00055342,120]
[320712143,1711525865082,-1360.42,0.00055342,120]
[320712144,1711525865093,-754.09,0.00055342,120]
[320712145,1711525865104,-217.107115,0.00055342,120]
[320712146,1711525865115,-217.107115,0.00055342,120]
[320712147,1711525865125,-916.55,0.00055342,120]
[320712148,1711525865136,-508.86743765,0.00055342,120]
[320712149,1711525865147,-1333.29,0.00055342,120]
[320712150,1711525865157,-500.0,0.00055342,120]
[320712151,1711525865169,-640.04,0.00055342,120]
[320712152,1711525865179,-606.77,0.00055342,120]
[320712153,1711525865189,-501.208439,0.00055342,120]
[320712154,1711525865199,-501.208439,0.00055342,120]
[320712155,1711525865210,-500.0,0.00055342,120]
[320712156,1711525865220,-501.208439,0.00055342,120]
[320712157,1711525865231,-501.208439,0.00055342,120]
[320712158,1711525865244,-500.0,0.00055342,120]
[320712159,1711525865254,-813.06,0.00055342,120]
[320712160,1711525865264,-500.0,0.00055342,120]
[320712161,1711525865274,-388.39046773,0.00055342,120]
[320712162,1711525865297,-111.60953227,0.00055342,120]
[320712163,1711525865307,-538.61394397,0.00055342,120]
[320712164,1711525865327,-454.62605603,0.00055342,120]
[320712165,1711525865339,-500.0,0.00055342,120]
[320712166,1711525865350,-500.0,0.00055342,120]
[320712167,1711525865360,-805.62,0.00055342,120]
[320712168,1711525865371,-500.0,0.00055342,120]
[320712169,1711525865382,-400.31706137,0.00055342,120]
[320712170,1711525870554,6496474.82876593,0.00018,2]
[320712171,1711525870586,30000.0,0.00018,2]
[320712172,1711525870610,1168856.14431086,0.00018,2]
[320712177,1711525893661,347.74748871,0.0001,2]
[320712190,1711525949142,157.64109763,0.0001,2]
[320712196,1711526043350,1097285.45365886,0.00018,2]
[320712198,1711526120648,356.78321295,0.00025107,10]
[320712199,1711526136155,356.78321295,0.00025108,10]
[320712200,1711526152645,275.53637997,0.00025108,10]
[320712201,1711526290066,-265.90282322,0.00024994,2]
[320712202,1711526290086,-182.74078,0.00024995,2]
[320712203,1711526290106,-155.0,0.00025093,2]
[320712204,1711526290126,-155.0,0.00025093,2]
[320712205,1711526290146,-155.0,0.00025093,2]
[320712206,1711526290166,-485.65085822,0.00025094,2]
[320712207,1711526290186,-4556.89776575,0.00025094,2]
[320712208,1711526290207,-1235.44561692,0.00025095,2]
[320712209,1711526290226,-500.0,0.00025095,2]
[320712210,1711526290246,-705.17999641,0.00025095,2]
[320712211,1711526290267,-214.80646049,0.00025095,2]
[320712212,1711526290287,-2756.88891822,0.00025095,2]
[320712213,1711526290307,-155.0,0.00025095,2]
[320712214,1711526290327,-155.0,0.00025095,2]
[320712215,1711526290347,-1218.58188732,0.00025095,2]
[320712216,1711526290370,-521.04289427,0.00025095,2]
[320712217,1711526290390,-325.44996838,0.00025096,2]
[320712218,1711526290410,-155.0,0.00025096,2]
[320712219,1711526290430,-155.0,0.00025096,2]
[320712220,1711526290452,-445.55633578,0.00025096,2]
[320712221,1711526290473,-2167.17725752,0.00025096,2]
[320712222,1711526290494,-235.35674052,0.00025096,2]
[320712223,1711526290517,-548.84635004,0.00025096,2]
[320712224,1711526290537,-3846.71319902,0.00025096,2]
[320712225,1711526290557,-4959.84843267,0.00025096,2]
[320712226,1711526290577,-262.26705623,0.00025096,2]
[320712227,1711526290598,-155.41960293,0.00025096,2]
[320712228,1711526290618,-155.0,0.00025097,2]
[320712229,1711526290642,-310.42125896,0.00025097,7]
[320712230,1711526290668,-3066.08279134,0.00025097,2]
[320712231,1711526290688,-406.77867836,0.00025097,2]
[320712232,1711526290708,-15178.04164087,0.00025098,2]
[320712233,1711526290730,-736.42959233,0.00025101,2]
[320712234,1711526290749,-306.28661421,0.00025107,2]
[320712235,1711526290770,-269.31706662,0.00025107,2]
[320712236,1711526290791,-2896.8694134,0.00025107,2]
[320712237,1711526304849,-7150.0,0.00025094,2]
[320712238,1711526336323,-5000.0,0.00025094,2]
[320712239,1711526455052,-21391.0,0.00025094,2]
[320712240,1711526479947,-1517.66808908,0.00025094,2]
[320712241,1711526479969,-261.4233623,0.00025105,2]
[320712242,1711526479991,-155.0,0.00025105,2]
[320712243,1711526480013,-444.63383928,0.00025105,2]
[320712244,1711526480036,-1572.4667378,0.00025105,2]
[320712245,1711526480058,-1234.79966986,0.00025105,2]
[320712246,1711526480081,-200.32787722,0.00025105,2]
[320712247,1711526483259,944.68042446,0.00025094,7]
[320712248,1711526833206,-484.50959772,0.00024474,2]
[320712249,1711526833226,-644.17906747,0.00024474,2]
[320712250,1711526833245,-188.460951,0.00024475,2]
[320712251,1711526833267,-155.0,0.00024597,2]
[320712252,1711526833289,-406.77867836,0.00024598,2]
[320712253,1711526833309,-763.08835726,0.00024598,2]
[320712254,1711526833329,-59.68265804,0.00024598,2]
[320712255,1711526838092,-95.31734196,0.00024598,2]
[320712256,1711526838114,-804.71577154,0.00025094,7]
[320712257,1711526838133,-376.00000002,0.00025094,2]
[320712258,1711526838153,-150.0,0.00025105,2]
[320712259,1711526838180,-309.24279846,0.00025106,2]
[320712270,1711527032153,-155.0,0.00025103,2]
[320712271,1711527032163,-167.74501,0.00025104,2]
[320712272,1711527032176,-579.24720401,0.00025104,2]
[320712273,1711527032186,-3472.86979985,0.00025106,2]
[320712274,1711527032196,-156.47105644,0.00025106,2]
[320712275,1711527032206,-396.79482658,0.00025106,2]
[320712276,1711527032216,-359.42818938,0.00025106,2]
[320712277,1711527032226,-4865.54805737,0.00025106,2]
[320712278,1711527032243,-1733.56127489,0.00025106,2]
[320712279,1711527032331,-18052.58203892,0.00025106,2]
[320712280,1711527032341,-150.0,0.00025107,2]
[320712281,1711527032351,-248.79434329,0.00025108,2]
[320712282,1711527032361,-659.37477421,0.00025108,2]
[320712283,1711527032370,-325.4274006,0.00025108,2]
[320712284,1711527032380,-233.98239012,0.00025108,2]
[320712285,1711527032396,-279.66686747,0.00025108,2]
[320712286,1711527032410,-314.21314509,0.00025108,2]
[320712287,1711527032420,-1239.0744,0.00025108,2]
[320712288,1711527032430,-155.78826724,0.00025108,2]
[320712289,1711527032439,-236.07933468,0.00025108,2]
[320712290,1711527032448,-155.35466686,0.00025108,2]
[320712291,1711527032458,-168.68665559,0.00025108,2]
[320712292,1711527032468,-175.43329082,0.00025108,2]
[320712293,1711527032477,-2342.38261578,0.00025108,2]
[320712294,1711527032487,-176.45993283,0.00025108,2]
[320712296,1711527032496,-155.97591928,0.00025108,2]
[320712298,1711527032506,-2974.94968194,0.00025108,2]
[320712300,1711527032516,-156.24562055,0.00025108,2]
[320712302,1711527032525,-180.38765646,0.00025108,2]
[320712303,1711527032534,-835.36,0.00025108,2]
[320712304,1711527032544,-155.2876622,0.00025109,2]
[320712305,1711527032553,-156.16267301,0.00025109,2]
[320712306,1711527032563,-499.99,0.00025109,2]
[320712307,1711527032572,-182.74077982,0.00026248,2]
[320712308,1711527032582,-198.27,0.00026319,2]
[320712309,1711527032593,-250.0,0.00027,3]
[320712310,1711527032603,-182.74077982,0.00027501,2]
[320712311,1711527032613,-9999.99,0.00027501,2]
[320712312,1711527032622,-182.74077982,0.00028754,2]
[320712313,1711527032632,-1236.94339498,0.00028945,28]
[320712314,1711527032643,-300.0,0.00029,3]
[320712315,1711527032652,-182.74077982,0.00030007,2]
[320712316,1711527032662,-573.21,0.00030007,2]
[320712317,1711527032672,-2985.37,0.00030547,2]
[320712318,1711527032682,-350.0,0.00031,3]
[320712319,1711527032692,-182.74077982,0.00031259,2]
[320712320,1711527032703,-6819.98,0.000321,2]
[320712321,1711527032712,-182.74077982,0.00032512,2]
[320712322,1711527032722,-400.0,0.00033,3]
[320712323,1711527032732,-500.0,0.00033115,2]
[320712324,1711527032742,-1840.03,0.00033216,2]
[320712325,1711527032752,-378.62,0.00033648,2]
[320712326,1711527032761,-422.13175941,0.00033716,4]
[320712327,1711527032772,-378.62,0.0003374,2]
[320712328,1711527032781,-182.74077982,0.00033765,2]
[320712329,1711527032790,-378.62,0.00033833,2]
[320712330,1711527032800,-378.62,0.00033925,2]
[320712331,1711527032810,-3869.97,0.00033952,2]
[320712332,1711527032822,-378.62,0.00034017,2]
[320712333,1711527032831,-5042.89,0.00034018,2]
[320712334,1711527032845,-435.62,0.00034018,2]
[320712335,1711527032855,-1000.0,0.00034108,2]
[320712336,1711527032865,-378.62,0.0003411,2]
[320712337,1711527032874,-250.0,0.0003418,2]
[320712338,1711527032884,-378.62,0.00034202,2]
[320712339,1711527032895,-378.62,0.00034294,2]
[320712340,1711527032906,-4870.12410277,0.00034379,2]
[320712341,1711527032915,-378.62,0.00034386,2]
[320712342,1711527032925,-320.11650737,0.00034395,2]
[320712343,1711527032936,-320.11650737,0.00034395,2]
[320712344,1711527032947,-320.11650737,0.00034395,2]
[320712345,1711527032956,-320.11650737,0.00034396,2]
[320712346,1711527032965,-320.11650737,0.00034396,2]
[320712347,1711527032976,-320.11650737,0.00034396,2]
[320712348,1711527032985,-320.11650737,0.00034396,2]
[320712349,1711527032994,-320.11650737,0.00034396,2]
[320712350,1711527033005,-320.11650737,0.00034396,2]
[320712351,1711527033016,-320.11650737,0.00034396,2]
[320712352,1711527033025,-320.11650737,0.00034396,2]
[320712353,1711527033035,-320.11650737,0.00034396,2]
[320712354,1711527033045,-320.11650737,0.00034396,2]
[320712355,1711527033055,-320.11650737,0.00034396,2]
[320712356,1711527033064,-320.11650737,0.00034396,2]
[320712357,1711527033074,-320.11650737,0.00034396,2]
[320712358,1711527033084,-320.11650737,0.00034396,2]
[320712359,1711527033094,-320.11650737,0.00034396,2]
[320712360,1711527033104,-320.11650737,0.00034396,2]
[320712361,1711527033117,-320.11650737,0.00034396,2]
[320712362,1711527033128,-320.11650737,0.00034396,2]
[320712363,1711527033140,-320.11650737,0.00034396,2]
[320712364,1711527033149,-320.11650737,0.00034396,2]
[320712365,1711527033161,-320.11650737,0.00034396,2]
[320712366,1711527033171,-320.11650737,0.00034396,2]
[320712367,1711527033181,-320.11650737,0.00034396,2]
[320712368,1711527033191,-320.11650737,0.00034396,2]
[320712369,1711527033201,-320.11650737,0.00034396,2]
[320712370,1711527033211,-320.11650737,0.00034396,2]